[Event "FIDE World Rapid Chess Championship 2021"]
[White "Vastrukhin, Oleg"]
[Black "Vokhidov, Shamsiddin"]
[WhiteFideId "4192770"]
[BlackFideId "14204223"]
[WhiteElo "2382"]
[BlackElo "2546"]
[Result "1-0"]
[Round "07"]
[TimeControl "900+10"]
[Date "2021.12.27"]
[WhiteClock "0:01:03"]
[BlackClock "0:00:16"]

1. Nf3 {[%clk 0:15:00]}  d5 {[%clk 0:15:00]} 2. g3 {[%clk 0:15:00]}  Nd7 {[%clk 0:15:00]} 3. d4 {[%clk 0:15:00]}  Nb6 {[%clk 0:15:00]} 4. b3 {[%clk 0:15:00]}  Bf5 {[%clk 0:15:00]} 5. a4 {[%clk 0:15:00]}  e6 {[%clk 0:15:26]} 6. a5 {[%clk 0:15:42]}  Nd7 {[%clk 0:15:26]} 7. a6 {[%clk 0:15:42]}  b5 {[%clk 0:15:26]} 8. Bg2 {[%clk 0:15:42]}  Ngf6 {[%clk 0:15:26]} 9. O-O {[%clk 0:15:42]}  Be7 {[%clk 0:15:26]} 10. Nbd2 {[%clk 0:15:42]}  Ne4 {[%clk 0:13:55]} 11. c4 {[%clk 0:14:50]}  c6 {[%clk 0:13:55]} 12. Nxe4 {[%clk 0:14:50]}  Bxe4 {[%clk 0:10:33]} 13. Bf4 {[%clk 0:13:07]}  O-O {[%clk 0:10:33]} 14. Ne5 {[%clk 0:13:07]}  Nxe5 {[%clk 0:10:33]} 15. Bxe4 {[%clk 0:11:52]}  Nxc4 {[%clk 0:10:05]} 16. Bb1 {[%clk 0:10:51]}  Nd6 {[%clk 0:09:29]} 17. Qd3 {[%clk 0:10:51]}  g6 {[%clk 0:09:29]} 18. h4 {[%clk 0:10:51]}  Rc8 {[%clk 0:09:29]} 19. h5 {[%clk 0:10:51]}  Ne4 {[%clk 0:09:03]} 20. Kg2 {[%clk 0:08:11]}  Bg5 {[%clk 0:07:09]} 21. Qe3 {[%clk 0:06:04]}  Bxf4 {[%clk 0:06:28]} 22. Qxf4 {[%clk 0:06:04]}  Nf6 {[%clk 0:06:28]} 23. Rh1 {[%clk 0:06:04]}  Qe7 {[%clk 0:06:28]} 24. Qg5 {[%clk 0:03:29]}  Rc7 {[%clk 0:05:56]} 25. Bd3 {[%clk 0:03:29]}  Rfc8 {[%clk 0:05:56]} 26. Rh4 {[%clk 0:03:29]}  Ne8 {[%clk 0:05:04]} 27. Qh6 {[%clk 0:02:17]}  Qf6 {[%clk 0:05:04]} 28. Rah1 {[%clk 0:02:17]}  Qg7 {[%clk 0:05:04]} 29. hxg6 {[%clk 0:02:17]}  fxg6 {[%clk 0:03:35]} 30. Qe3 {[%clk 0:01:58]}  Nf6 {[%clk 0:03:35]} 31. Qxe6+ {[%clk 0:01:58]}  Qf7 {[%clk 0:03:35]} 32. Qxf7+ {[%clk 0:01:58]}  Kxf7 {[%clk 0:03:35]} 33. Rc1 {[%clk 0:01:58]}  h5 {[%clk 0:02:36]} 34. Rhh1 {[%clk 0:01:31]}  Rb8 {[%clk 0:02:36]} 35. Rc2 {[%clk 0:01:31]}  Rb6 {[%clk 0:02:36]} 36. Rhc1 {[%clk 0:01:31]}  g5 {[%clk 0:02:36]} 37. Rc5 {[%clk 0:01:31]}  Ke6 {[%clk 0:00:49]} 38. Rxb5 {[%clk 0:01:30]}  Rxb5 {[%clk 0:00:49]} 39. Bxb5 {[%clk 0:01:30]}  Kd6 {[%clk 0:00:49]} 40. Bd3 {[%clk 0:01:30]}  Rc8 {[%clk 0:00:49]} 41. f3 {[%clk 0:01:30]}  Re8 {[%clk 0:00:49]} 42. Re1 {[%clk 0:01:30]}  g4 {[%clk 0:00:49]} 43. Kf2 {[%clk 0:01:30]}  Rb8 {[%clk 0:00:28]} 44. e4 {[%clk 0:01:09]}  dxe4 {[%clk 0:00:28]} 45. fxe4 {[%clk 0:01:09]}  Rxb3 {[%clk 0:00:28]} 46. e5+ {[%clk 0:01:09]}  Kd5 {[%clk 0:00:28]} 47. exf6 {[%clk 0:01:09]}  Rxd3 {[%clk 0:00:28]} 48. Re5+ {[%clk 0:01:09]}  Kd6 {[%clk 0:00:28]} 49. Rxh5 {[%clk 0:01:09]}  Rf3+ {[%clk 0:00:28]} 50. Kg2 {[%clk 0:01:09]}  Rxf6 {[%clk 0:00:28]} 51. Rh7 {[%clk 0:01:09]}  Rf3 {[%clk 0:00:20]} 52. Rxa7 {[%clk 0:00:31]}  Ra3 {[%clk 0:00:20]} 53. Ra8 {[%clk 0:00:31]}  Ra2+ {[%clk 0:00:20]} 54. Kf1 {[%clk 0:00:31]}  Kc7 {[%clk 0:00:20]} 55. a7 {[%clk 0:00:31]}  Kb7 {[%clk 0:00:20]} 56. Rg8 {[%clk 0:00:31]}  Kxa7 {[%clk 0:00:20]} 57. Rxg4 {[%clk 0:00:31]}  Kb6 {[%clk 0:00:20]} 58. Rf4 {[%clk 0:00:31]}  Kb5 {[%clk 0:00:20]} 59. g4 {[%clk 0:00:31]}  Kc4 {[%clk 0:00:20]} 60. g5 {[%clk 0:00:31]}  Kd5 {[%clk 0:00:20]} 61. g6 {[%clk 0:00:31]}  Ra8 {[%clk 0:00:20]} 62. Ke2 {[%clk 0:00:31]}  Rg8 {[%clk 0:00:20]} 63. Rg4 {[%clk 0:00:31]}  Ke6 {[%clk 0:00:16]} 64. g7 {[%clk 0:01:03]}  Kf5 {[%clk 0:00:16]} 65. Rg3 {[%clk 0:01:03]}  Ke4 {[%clk 0:00:16]} 66. Rg4+ {[%clk 0:01:03]}  Kf5 {[%clk 0:00:16]} 67. Kf3 {[%clk 0:01:03]}  Kf6 {[%clk 0:00:16]} 68. Kf4 {[%clk 0:01:03]}  Ke6 {[%clk 0:00:16]} 69. Rg6+ {[%clk 0:01:03]}  Kf7 {[%clk 0:00:16]} 70. Ke4 {[%clk 0:01:03]} 1-0


[Site "http://www.Chess.com"]

[Event "FIDE World Rapid Chess Championship 2021"]
[White "Demidov, Mikhail"]
[Black "Holm, Kristian Stuvik"]
[WhiteFideId "4197143"]
[BlackFideId "1508083"]
[WhiteElo "2544"]
[BlackElo "2409"]
[Result "1-0"]
[Round "07"]
[TimeControl "900+10"]
[Date "2021.12.27"]
[WhiteClock "0:00:32"]
[BlackClock "0:00:19"]

1. d4 {[%clk 0:15:00]}  Nf6 {[%clk 0:15:00]} 2. Nf3 {[%clk 0:15:00]}  d5 {[%clk 0:15:00]} 3. Bf4 {[%clk 0:15:00]}  e6 {[%clk 0:15:00]} 4. e3 {[%clk 0:15:00]}  c5 {[%clk 0:15:00]} 5. dxc5 {[%clk 0:15:00]}  Bxc5 {[%clk 0:15:00]} 6. Be2 {[%clk 0:15:00]}  O-O {[%clk 0:15:18]} 7. O-O {[%clk 0:16:02]}  Nc6 {[%clk 0:15:18]} 8. c4 {[%clk 0:16:02]}  dxc4 {[%clk 0:15:18]} 9. Bxc4 {[%clk 0:16:02]}  Qxd1 {[%clk 0:15:18]} 10. Rxd1 {[%clk 0:16:02]}  b6 {[%clk 0:15:18]} 11. Nc3 {[%clk 0:16:19]}  Bb7 {[%clk 0:13:03]} 12. Nb5 {[%clk 0:16:19]}  Rad8 {[%clk 0:13:03]} 13. Ne5 {[%clk 0:15:10]}  a6 {[%clk 0:12:01]} 14. Nxc6 {[%clk 0:14:29]}  Bxc6 {[%clk 0:10:38]} 15. Nc7 {[%clk 0:14:29]}  a5 {[%clk 0:10:38]} 16. h3 {[%clk 0:11:56]}  Nd5 {[%clk 0:09:50]} 17. Bg5 {[%clk 0:08:03]}  Rd7 {[%clk 0:08:51]} 18. Na6 {[%clk 0:08:03]}  Bd6 {[%clk 0:08:17]} 19. e4 {[%clk 0:05:29]}  Nb4 {[%clk 0:08:17]} 20. Nxb4 {[%clk 0:05:29]}  Bxb4 {[%clk 0:08:17]} 21. Rxd7 {[%clk 0:05:29]}  Bxd7 {[%clk 0:08:17]} 22. Rd1 {[%clk 0:03:32]}  Bc6 {[%clk 0:05:08]} 23. Be3 {[%clk 0:03:32]}  b5 {[%clk 0:05:08]} 24. Be2 {[%clk 0:03:32]}  Bxe4 {[%clk 0:05:08]} 25. Bxb5 {[%clk 0:03:32]}  Bd5 {[%clk 0:05:08]} 26. a3 {[%clk 0:03:40]}  Bd6 {[%clk 0:03:19]} 27. Bd2 {[%clk 0:03:40]}  Ra8 {[%clk 0:03:11]} 28. Bc3 {[%clk 0:01:12]}  Kf8 {[%clk 0:03:11]} 29. Bc6 {[%clk 0:00:59]}  Bxc6 {[%clk 0:01:41]} 30. Rxd6 {[%clk 0:00:59]}  Be8 {[%clk 0:01:41]} 31. Rb6 {[%clk 0:00:59]}  a4 {[%clk 0:01:41]} 32. Bb4+ {[%clk 0:00:59]}  Kg8 {[%clk 0:01:41]} 33. f3 {[%clk 0:00:59]}  Rc8 {[%clk 0:01:41]} 34. Bc3 {[%clk 0:00:59]}  Bc6 {[%clk 0:01:41]} 35. Ra6 {[%clk 0:00:59]}  f6 {[%clk 0:01:41]} 36. Ra7 {[%clk 0:00:59]}  e5 {[%clk 0:01:41]} 37. Kf2 {[%clk 0:00:46]}  Rd8 {[%clk 0:01:14]} 38. Ra6 {[%clk 0:00:46]}  Bb5 {[%clk 0:01:14]} 39. Ra5 {[%clk 0:00:46]}  Bc6 {[%clk 0:01:14]} 40. Ra6 {[%clk 0:00:46]}  Bb5 {[%clk 0:01:14]} 41. Rb6 {[%clk 0:00:46]}  Bc4 {[%clk 0:01:14]} 42. g4 {[%clk 0:00:46]}  Rd7 {[%clk 0:01:14]} 43. h4 {[%clk 0:00:46]}  Kf7 {[%clk 0:01:14]} 44. g5 {[%clk 0:00:46]}  Rd3 {[%clk 0:01:14]} 45. gxf6 {[%clk 0:00:39]}  gxf6 {[%clk 0:01:08]} 46. f4 {[%clk 0:00:39]}  Rh3 {[%clk 0:01:08]} 47. Rb4 {[%clk 0:00:39]}  Bb3 {[%clk 0:01:08]} 48. fxe5 {[%clk 0:00:39]}  fxe5 {[%clk 0:01:08]} 49. Bxe5 {[%clk 0:00:39]}  Rd3 {[%clk 0:01:08]} 50. Rb6 {[%clk 0:00:39]}  Be6 {[%clk 0:01:08]} 51. Ra6 {[%clk 0:00:39]}  Bb3 {[%clk 0:00:16]} 52. h5 {[%clk 0:00:25]}  Rh3 {[%clk 0:00:16]} 53. h6 {[%clk 0:00:25]}  Ke7 {[%clk 0:00:16]} 54. Ra7+ {[%clk 0:00:25]}  Ke6 {[%clk 0:00:16]} 55. Bf4 {[%clk 0:00:25]}  Bc2 {[%clk 0:00:16]} 56. Rc7 {[%clk 0:00:25]}  Be4 {[%clk 0:00:16]} 57. Ke2 {[%clk 0:00:25]}  Kf5 {[%clk 0:00:16]} 58. Bc1 {[%clk 0:00:25]}  Ke5 {[%clk 0:00:16]} 59. Re7+ {[%clk 0:00:25]}  Kd5 {[%clk 0:00:16]} 60. Ra7 {[%clk 0:00:25]}  Bc2 {[%clk 0:00:16]} 61. Kd2 {[%clk 0:00:17]}  Bg6 {[%clk 0:00:16]} 62. Ra5+ {[%clk 0:00:17]}  Kc6 {[%clk 0:00:16]} 63. Ke2 {[%clk 0:00:17]}  Rh2+ {[%clk 0:00:16]} 64. Kf3 {[%clk 0:00:17]}  Rc2 {[%clk 0:00:16]} 65. Be3 {[%clk 0:00:17]}  Rxb2 {[%clk 0:00:16]} 66. Rxa4 {[%clk 0:00:17]}  Ra2 {[%clk 0:00:16]} 67. Ra6+ {[%clk 0:00:17]}  Kd5 {[%clk 0:00:16]} 68. Kg3 {[%clk 0:00:17]}  Be4 {[%clk 0:00:16]} 69. Ra7 {[%clk 0:00:17]}  Re2 {[%clk 0:00:16]} 70. Kf4 {[%clk 0:00:17]}  Bg6 {[%clk 0:00:16]} 71. a4 {[%clk 0:00:17]}  Rh2 {[%clk 0:00:25]} 72. Kg3 {[%clk 0:00:28]}  Ra2 {[%clk 0:00:25]} 73. Kf4 {[%clk 0:00:28]}  Ke6 {[%clk 0:00:25]} 74. Ra6+ {[%clk 0:00:28]}  Kf7 {[%clk 0:00:25]} 75. Bd4 {[%clk 0:00:28]}  Rh2 {[%clk 0:00:25]} 76. Bg7 {[%clk 0:00:28]}  Rh4+ {[%clk 0:00:25]} 77. Ke5 {[%clk 0:00:28]}  Bc2 {[%clk 0:00:25]} 78. a5 {[%clk 0:00:28]}  Ra4 {[%clk 0:00:25]} 79. Ra7+ {[%clk 0:00:28]}  Kg6 {[%clk 0:00:25]} 80. Ra6+ {[%clk 0:00:20]}  Kf7 {[%clk 0:00:20]} 81. Kd5 {[%clk 0:00:20]}  Bd3 {[%clk 0:00:20]} 82. Ra7+ {[%clk 0:00:20]}  Kg6 {[%clk 0:00:20]} 83. Bf8 {[%clk 0:00:20]}  Be2 {[%clk 0:00:20]} 84. Ke5 {[%clk 0:00:20]}  Bd3 {[%clk 0:00:20]} 85. Kd5 {[%clk 0:00:20]}  Be2 {[%clk 0:00:20]} 86. Kc5 {[%clk 0:00:20]}  Bd3 {[%clk 0:00:20]} 87. Rg7+ {[%clk 0:00:20]}  Kh5 {[%clk 0:00:20]} 88. Ra7 {[%clk 0:00:20]}  Ra2 {[%clk 0:00:18]} 89. Bg7 {[%clk 0:00:21]}  Ra4 {[%clk 0:00:18]} 90. Bf8 {[%clk 0:00:21]}  Ra2 {[%clk 0:00:18]} 91. Kb4 {[%clk 0:00:21]}  Rf2 {[%clk 0:00:18]} 92. Ra8 {[%clk 0:00:21]}  Rf4+ {[%clk 0:00:18]} 93. Kc3 {[%clk 0:00:21]}  Bf1 {[%clk 0:00:18]} 94. Bg7 {[%clk 0:00:21]}  Rf3+ {[%clk 0:00:18]} 95. Kd4 {[%clk 0:00:21]}  Ra3 {[%clk 0:00:18]} 96. Ra7 {[%clk 0:00:21]}  Ra2 {[%clk 0:00:18]} 97. Bf8 {[%clk 0:00:21]}  Rf2 {[%clk 0:00:18]} 98. Bg7 {[%clk 0:00:21]}  Ra2 {[%clk 0:00:18]} 99. Kc3 {[%clk 0:00:45]}  Rf2 {[%clk 0:00:13]} 100. Rd7 {[%clk 0:00:45]}  Rf5 {[%clk 0:00:13]} 101. Kb4 {[%clk 0:00:45]}  Rb5+ {[%clk 0:00:13]} 102. Ka4 {[%clk 0:00:45]}  Rf5 {[%clk 0:00:13]} 103. Rd4 {[%clk 0:00:45]}  Kg5 {[%clk 0:00:13]} 104. Rd6 {[%clk 0:00:45]}  Rf4+ {[%clk 0:00:13]} 105. Kb3 {[%clk 0:00:45]}  Rf3+ {[%clk 0:00:13]} 106. Bc3 {[%clk 0:00:45]}  Rf5 {[%clk 0:00:23]} 107. a6 {[%clk 0:00:22]}  Rf7 {[%clk 0:00:23]} 108. Bd4 {[%clk 0:00:22]}  Bg2 {[%clk 0:00:23]} 109. Kb4 {[%clk 0:00:22]}  Be4 {[%clk 0:00:23]} 110. Be3+ {[%clk 0:00:22]}  Kh5 {[%clk 0:00:23]} 111. Re6 {[%clk 0:00:22]}  Bf3 {[%clk 0:00:23]} 112. Re8 {[%clk 0:00:22]}  Bc6 {[%clk 0:00:23]} 113. Rg8 {[%clk 0:00:22]}  Re7 {[%clk 0:00:23]} 114. Rg3 {[%clk 0:00:22]}  Be4 {[%clk 0:00:12]} 115. Rg7 {[%clk 0:00:13]}  Re6 {[%clk 0:00:12]} 116. a7 {[%clk 0:00:13]}  Ra6 {[%clk 0:00:12]} 117. Kb5 {[%clk 0:00:13]}  Bd3+ {[%clk 0:00:12]} 118. Kb4 {[%clk 0:00:13]}  Be4 {[%clk 0:00:12]} 119. Re7 {[%clk 0:00:13]}  Bg6 {[%clk 0:00:12]} 120. Re5+ {[%clk 0:00:13]}  Kh4 {[%clk 0:00:12]} 121. Re6 {[%clk 0:00:13]}  Rxe6 {[%clk 0:00:12]} 122. Bf2+ {[%clk 0:00:13]}  Kh5 {[%clk 0:00:12]} 123. a8=Q {[%clk 0:00:13]}  Re4+ {[%clk 0:00:12]} 124. Kc3 {[%clk 0:00:13]}  Kxh6 {[%clk 0:00:12]} 125. Qd5 {[%clk 0:00:13]}  Kg7 {[%clk 0:00:19]} 126. Bd4+ {[%clk 0:00:32]}  Kh6 {[%clk 0:00:19]} 127. Kd2 {[%clk 0:00:32]}  Re8 {[%clk 0:00:19]} 128. Bf6 {[%clk 0:00:32]} 1-0


[Site "http://www.Chess.com"]

[Event "FIDE World Rapid Chess Championship 2021"]
[White "Bartel, Mateusz"]
[Black "Petrovskyi, Vadym"]
[WhiteFideId "1112635"]
[BlackFideId "14165210"]
[WhiteElo "2543"]
[BlackElo "2282"]
[Result "1-0"]
[Round "07"]
[TimeControl "900+10"]
[Date "2021.12.27"]
[WhiteClock "0:01:12"]
[BlackClock "0:00:04"]

1. e4 {[%clk 0:15:00]}  c5 {[%clk 0:15:00]} 2. Nf3 {[%clk 0:15:00]}  d6 {[%clk 0:15:00]} 3. Bb5+ {[%clk 0:15:00]}  Bd7 {[%clk 0:15:00]} 4. Bxd7+ {[%clk 0:15:00]}  Qxd7 {[%clk 0:15:00]} 5. O-O {[%clk 0:15:00]}  Nf6 {[%clk 0:15:00]} 6. Re1 {[%clk 0:15:00]}  Nc6 {[%clk 0:15:00]} 7. c3 {[%clk 0:15:00]}  e6 {[%clk 0:15:00]} 8. d4 {[%clk 0:15:00]}  cxd4 {[%clk 0:15:00]} 9. cxd4 {[%clk 0:15:00]}  d5 {[%clk 0:15:00]} 10. e5 {[%clk 0:15:00]}  Ne4 {[%clk 0:15:00]} 11. a3 {[%clk 0:15:00]}  Be7 {[%clk 0:15:00]} 12. Qd3 {[%clk 0:15:00]}  O-O {[%clk 0:16:38]} 13. Nbd2 {[%clk 0:17:00]}  Nxd2 {[%clk 0:16:38]} 14. Bxd2 {[%clk 0:17:00]}  f6 {[%clk 0:16:38]} 15. exf6 {[%clk 0:17:00]}  Bxf6 {[%clk 0:15:40]} 16. Ng5 {[%clk 0:17:00]}  Bxg5 {[%clk 0:15:40]} 17. Bxg5 {[%clk 0:17:00]}  Rf5 {[%clk 0:15:40]} 18. Be3 {[%clk 0:17:00]}  Rc8 {[%clk 0:15:40]} 19. Rac1 {[%clk 0:17:00]}  Rff8 {[%clk 0:15:15]} 20. Rc2 {[%clk 0:14:00]}  Ne7 {[%clk 0:15:15]} 21. Rce2 {[%clk 0:14:00]}  Rc6 {[%clk 0:15:15]} 22. Bd2 {[%clk 0:12:58]}  Nf5 {[%clk 0:13:52]} 23. Bc3 {[%clk 0:12:58]}  Rf6 {[%clk 0:13:23]} 24. Re5 {[%clk 0:10:57]}  Qf7 {[%clk 0:13:23]} 25. Qe2 {[%clk 0:10:14]}  Nh4 {[%clk 0:12:29]} 26. Re3 {[%clk 0:08:48]}  h6 {[%clk 0:11:37]} 27. Qg4 {[%clk 0:06:45]}  Nf5 {[%clk 0:09:50]} 28. Re5 {[%clk 0:04:39]}  Rg6 {[%clk 0:09:39]} 29. Qh3 {[%clk 0:04:39]}  Rc4 {[%clk 0:09:39]} 30. Rd1 {[%clk 0:03:22]}  h5 {[%clk 0:08:06]} 31. Kh1 {[%clk 0:03:22]}  Rg4 {[%clk 0:06:22]} 32. Rde1 {[%clk 0:02:51]}  Rc6 {[%clk 0:06:22]} 33. Qf3 {[%clk 0:02:51]}  Qg6 {[%clk 0:04:50]} 34. g3 {[%clk 0:02:08]}  Qf7 {[%clk 0:04:50]} 35. Qd3 {[%clk 0:00:49]}  Rg6 {[%clk 0:03:37]} 36. Qe2 {[%clk 0:00:49]}  Rf6 {[%clk 0:03:37]} 37. f4 {[%clk 0:00:49]}  Rg6 {[%clk 0:03:37]} 38. Kg2 {[%clk 0:00:49]}  h4 {[%clk 0:01:39]} 39. g4 {[%clk 0:00:44]}  Nh6 {[%clk 0:01:39]} 40. h3 {[%clk 0:00:44]}  Qxf4 {[%clk 0:01:39]} 41. Re3 {[%clk 0:00:44]}  Nf5 {[%clk 0:01:39]} 42. Rf3 {[%clk 0:00:44]}  Qc7 {[%clk 0:01:39]} 43. Qf2 {[%clk 0:00:44]}  Ng3 {[%clk 0:00:50]} 44. Rf8+ {[%clk 0:00:33]}  Kh7 {[%clk 0:00:50]} 45. Re5 {[%clk 0:00:33]}  Qe7 {[%clk 0:00:50]} 46. Rf7 {[%clk 0:00:33]}  Qd8 {[%clk 0:00:50]} 47. Qc2 {[%clk 0:00:33]}  Ne4 {[%clk 0:00:50]} 48. Rxb7 {[%clk 0:00:33]}  Rc7 {[%clk 0:00:50]} 49. Rxc7 {[%clk 0:00:33]}  Qxc7 {[%clk 0:00:50]} 50. Qe2 {[%clk 0:00:33]}  Rf6 {[%clk 0:00:50]} 51. Be1 {[%clk 0:00:33]}  g5 {[%clk 0:00:50]} 52. Rxe4 {[%clk 0:00:33]}  dxe4 {[%clk 0:00:50]} 53. Qxe4+ {[%clk 0:00:33]}  Kh6 {[%clk 0:00:28]} 54. d5 {[%clk 0:00:50]}  exd5 {[%clk 0:00:28]} 55. Qe8 {[%clk 0:00:50]}  Qc2+ {[%clk 0:00:28]} 56. Kg1 {[%clk 0:00:50]}  Qc5+ {[%clk 0:00:28]} 57. Kg2 {[%clk 0:00:50]}  Qf8 {[%clk 0:00:28]} 58. Qh5+ {[%clk 0:00:50]}  Kg7 {[%clk 0:00:28]} 59. Qxg5+ {[%clk 0:00:50]}  Kh7 {[%clk 0:00:28]} 60. Qxd5 {[%clk 0:00:50]}  Qe7 {[%clk 0:00:28]} 61. Qd3+ {[%clk 0:00:50]}  Rg6 {[%clk 0:00:28]} 62. Bc3 {[%clk 0:00:50]}  Qb7+ {[%clk 0:00:28]} 63. Kf2 {[%clk 0:00:50]}  Qf7+ {[%clk 0:00:28]} 64. Ke1 {[%clk 0:00:55]}  Qe6+ {[%clk 0:00:25]} 65. Kd2 {[%clk 0:00:55]}  Qd6 {[%clk 0:00:25]} 66. Bd4 {[%clk 0:00:55]}  Kg8 {[%clk 0:00:25]} 67. Bxa7 {[%clk 0:00:55]}  Qh2+ {[%clk 0:00:25]} 68. Kc1 {[%clk 0:00:55]}  Qc7+ {[%clk 0:00:25]} 69. Kb1 {[%clk 0:00:55]}  Re6 {[%clk 0:00:25]} 70. Bf2 {[%clk 0:00:55]}  Rh6 {[%clk 0:00:25]} 71. Ka1 {[%clk 0:00:55]}  Qc1+ {[%clk 0:00:04]} 72. Ka2 {[%clk 0:00:44]}  Qc7 {[%clk 0:00:04]} 73. Qd5+ {[%clk 0:00:44]}  Kh7 {[%clk 0:00:04]} 74. Bd4 {[%clk 0:00:44]}  Rg6 {[%clk 0:00:04]} 75. Qh5+ {[%clk 0:00:44]}  Rh6 {[%clk 0:00:04]} 76. Qf5+ {[%clk 0:00:44]}  Rg6 {[%clk 0:00:04]} 77. Qd5 {[%clk 0:00:44]}  Rd6 {[%clk 0:00:04]} 78. Qe4+ {[%clk 0:00:44]}  Rg6 {[%clk 0:00:04]} 79. b3 {[%clk 0:00:44]}  Qf7 {[%clk 0:00:04]} 80. a4 {[%clk 0:00:44]}  Kh6 {[%clk 0:00:04]} 81. g5+ {[%clk 0:00:44]}  Rxg5 {[%clk 0:00:04]} 82. Be3 {[%clk 0:01:12]} 1-0


[Site "http://www.Chess.com"]

[Event "FIDE World Rapid Chess Championship 2021"]
[White "Michalik, Peter"]
[Black "Oparin, Grigoriy"]
[WhiteFideId "14907526"]
[BlackFideId "24125890"]
[WhiteElo "2515"]
[BlackElo "2725"]
[Result "1/2-1/2"]
[Round "07"]
[TimeControl "900+10"]
[Date "2021.12.27"]
[WhiteClock "0:00:14"]
[BlackClock "0:00:36"]

1. e4 {[%clk 0:15:00]}  e5 {[%clk 0:15:00]} 2. Nf3 {[%clk 0:15:00]}  Nc6 {[%clk 0:15:00]} 3. Nc3 {[%clk 0:15:00]}  Nf6 {[%clk 0:15:00]} 4. d4 {[%clk 0:15:00]}  exd4 {[%clk 0:15:00]} 5. Nxd4 {[%clk 0:15:00]}  Bb4 {[%clk 0:15:00]} 6. Nxc6 {[%clk 0:15:00]}  bxc6 {[%clk 0:15:00]} 7. Bd3 {[%clk 0:15:00]}  O-O {[%clk 0:15:00]} 8. O-O {[%clk 0:15:00]}  d5 {[%clk 0:15:00]} 9. Bd2 {[%clk 0:16:15]}  Rb8 {[%clk 0:15:52]} 10. Re1 {[%clk 0:16:15]}  Re8 {[%clk 0:15:52]} 11. exd5 {[%clk 0:16:15]}  Rxe1+ {[%clk 0:15:52]} 12. Qxe1 {[%clk 0:16:15]}  cxd5 {[%clk 0:15:52]} 13. a3 {[%clk 0:16:16]}  Be7 {[%clk 0:14:38]} 14. b4 {[%clk 0:15:06]}  c5 {[%clk 0:14:38]} 15. bxc5 {[%clk 0:15:06]}  Bxc5 {[%clk 0:14:38]} 16. Be3 {[%clk 0:13:54]}  Bb6 {[%clk 0:10:59]} 17. Bxb6 {[%clk 0:12:08]}  Rxb6 {[%clk 0:10:59]} 18. Rb1 {[%clk 0:10:15]}  Be6 {[%clk 0:06:16]} 19. Ne2 {[%clk 0:10:15]}  Ng4 {[%clk 0:06:05]} 20. Rxb6 {[%clk 0:07:48]}  Qxb6 {[%clk 0:06:05]} 21. h3 {[%clk 0:07:05]}  Ne5 {[%clk 0:02:38]} 22. Nf4 {[%clk 0:07:05]}  Nd7 {[%clk 0:02:46]} 23. Qc3 {[%clk 0:04:18]}  Qc5 {[%clk 0:02:46]} 24. Qxc5 {[%clk 0:04:18]}  Nxc5 {[%clk 0:02:46]} 25. Kf1 {[%clk 0:04:18]}  Kf8 {[%clk 0:02:46]} 26. Ke2 {[%clk 0:04:18]}  h6 {[%clk 0:01:20]} 27. Ke3 {[%clk 0:03:02]}  Ke7 {[%clk 0:01:20]} 28. Kd4 {[%clk 0:03:02]}  Kd6 {[%clk 0:01:20]} 29. Be2 {[%clk 0:03:02]}  Bc8 {[%clk 0:01:11]} 30. c4 {[%clk 0:01:24]}  dxc4 {[%clk 0:01:11]} 31. Bxc4 {[%clk 0:01:24]}  g5 {[%clk 0:01:11]} 32. Nh5 {[%clk 0:01:24]}  f5 {[%clk 0:01:11]} 33. Ng7 {[%clk 0:01:24]}  Ne4 {[%clk 0:00:36]} 34. Bd3 {[%clk 0:00:14]}  Nxf2 {[%clk 0:00:36]} 35. Bxf5 {[%clk 0:00:14]}  Bb7 {[%clk 0:00:36]} 36. g3 {[%clk 0:00:14]}  Nh1 {[%clk 0:00:36]} 37. Be4 {[%clk 0:00:14]}  Bxe4 {[%clk 0:00:36]} 38. Kxe4 {[%clk 0:00:14]}  Nxg3+ {[%clk 0:00:36]} 39. Kf3 {[%clk 0:00:14]}  Nf1 {[%clk 0:00:36]} 40. Ke2 {[%clk 0:00:14]}  Ng3+ {[%clk 0:00:36]} 41. Kf3 {[%clk 0:00:14]}  Nf1 {[%clk 0:00:36]} 42. Ke2 {[%clk 0:00:14]}  Ke5 {[%clk 0:00:36]} 1/2-1/2


[Site "http://www.Chess.com"]

[Event "FIDE World Rapid Chess Championship 2021"]
[White "Artemiev, Vladislav"]
[Black "Nguyen, Thai Dai Van"]
[WhiteFideId "24101605"]
[BlackFideId "358878"]
[WhiteElo "2714"]
[BlackElo "2488"]
[Result "1-0"]
[Round "07"]
[TimeControl "900+10"]
[Date "2021.12.27"]
[WhiteClock "0:00:35"]
[BlackClock "0:00:02"]

1. Nf3 {[%clk 0:15:00]}  d5 {[%clk 0:15:00]} 2. g3 {[%clk 0:15:00]}  Nf6 {[%clk 0:15:00]} 3. Bg2 {[%clk 0:15:00]}  e6 {[%clk 0:15:00]} 4. O-O {[%clk 0:15:00]}  Be7 {[%clk 0:15:00]} 5. c4 {[%clk 0:15:00]}  O-O {[%clk 0:15:00]} 6. b3 {[%clk 0:15:00]}  c5 {[%clk 0:15:53]} 7. Bb2 {[%clk 0:15:28]}  Nc6 {[%clk 0:15:53]} 8. e3 {[%clk 0:15:28]}  d4 {[%clk 0:15:53]} 9. exd4 {[%clk 0:15:28]}  cxd4 {[%clk 0:15:53]} 10. Re1 {[%clk 0:15:28]}  a5 {[%clk 0:15:53]} 11. d3 {[%clk 0:14:25]}  Bc5 {[%clk 0:14:56]} 12. Na3 {[%clk 0:12:09]}  Re8 {[%clk 0:14:24]} 13. Nb5 {[%clk 0:09:28]}  e5 {[%clk 0:13:05]} 14. a3 {[%clk 0:09:28]}  h6 {[%clk 0:13:14]} 15. Nd2 {[%clk 0:05:43]}  Bf5 {[%clk 0:13:14]} 16. Qe2 {[%clk 0:05:43]}  Qd7 {[%clk 0:13:14]} 17. Ne4 {[%clk 0:05:49]}  Nxe4 {[%clk 0:10:44]} 18. Bxe4 {[%clk 0:05:49]}  Bxe4 {[%clk 0:10:52]} 19. Qxe4 {[%clk 0:05:30]}  Na7 {[%clk 0:10:52]} 20. Nxa7 {[%clk 0:05:30]}  Rxa7 {[%clk 0:10:52]} 21. Bc1 {[%clk 0:05:13]}  b6 {[%clk 0:07:36]} 22. Bd2 {[%clk 0:03:25]}  Qd6 {[%clk 0:03:25]} 23. Qg4 {[%clk 0:03:25]}  Bxa3 {[%clk 0:03:19]} 24. Bxh6 {[%clk 0:01:01]}  Qxh6 {[%clk 0:03:19]} 25. Rxa3 {[%clk 0:01:01]}  Qd6 {[%clk 0:03:19]} 26. Raa1 {[%clk 0:00:27]}  Rae7 {[%clk 0:01:00]} 27. Qf3 {[%clk 0:00:27]}  Qb4 {[%clk 0:01:00]} 28. Rab1 {[%clk 0:00:27]}  Qc5 {[%clk 0:01:00]} 29. h4 {[%clk 0:00:27]}  b5 {[%clk 0:01:00]} 30. h5 {[%clk 0:00:27]}  bxc4 {[%clk 0:01:00]} 31. bxc4 {[%clk 0:00:27]}  e4 {[%clk 0:01:00]} 32. dxe4 {[%clk 0:00:27]}  Qxc4 {[%clk 0:01:00]} 33. h6 {[%clk 0:00:27]}  gxh6 {[%clk 0:01:00]} 34. Qg4+ {[%clk 0:00:27]}  Kh8 {[%clk 0:01:00]} 35. Rb6 {[%clk 0:00:24]}  Re6 {[%clk 0:01:11]} 36. Rb7 {[%clk 0:00:24]}  Rg6 {[%clk 0:01:11]} 37. Qf4 {[%clk 0:00:24]}  Kg7 {[%clk 0:01:11]} 38. Rc1 {[%clk 0:00:24]}  Rxe4 {[%clk 0:01:11]} 39. Rxf7+ {[%clk 0:00:24]}  Qxf7 {[%clk 0:01:11]} 40. Qxe4 {[%clk 0:00:24]}  Rd6 {[%clk 0:01:11]} 41. Qe5+ {[%clk 0:00:24]}  Qf6 {[%clk 0:01:11]} 42. Rc7+ {[%clk 0:00:35]}  Kg6 {[%clk 0:00:02]} 43. Qe4+ {[%clk 0:00:35]}  Qf5 {[%clk 0:00:02]} 44. Rg7+ {[%clk 0:00:35]}  Kxg7 {[%clk 0:00:02]} 45. Qxf5 {[%clk 0:00:35]}  Rd8 {[%clk 0:00:02]} 46. Qxa5 {[%clk 0:00:35]}  Rd7 {[%clk 0:00:02]} 47. Qb5 {[%clk 0:00:35]} 1-0


[Site "http://www.Chess.com"]